bitfinex-derivatives/quotes_SOLF0:USTF0_20241224
["timestamp","ask_amount","ask_price","bid_price","bid_amount"]
[1735055853328,4.14,198.42,198.29,19.51407353]
[1735055853623,2.5229,198.37,198.32,2.5234]
[1735055854020,2.524,198.29,198.24,4.0954]
[1735055854221,16.35606844,198.41,198.26,12.21606844]
[1735055855223,2.5236,198.32,198.26,14.74036844]
[1735055856529,2.5236,198.32,198.26,2.5243]
[1735055856731,2.5236,198.32,198.26,14.74036844]
[1735055856928,2.524,198.29,198.26,12.21606844]
[1735055858030,2.5241,198.28,198.26,12.21606844]
[1735055858222,4.14,198.34,198.26,12.21606844]
[1735055858831,2.5239,198.3,198.26,12.21606844]
[1735055859220,2.5246,198.24,198.19,2.5251]
[1735055859425,2.5246,198.24,198.2,12.21606844]
[1735055859621,2.5246,198.24,198.2,13.84706844]
[1735055860329,2.5244,198.26,198.21,2.5249]
[1735055860526,4.14,198.25,198.09,53.78452095]
[1735055860732,12.21606844,198.23,198.11,1.6421]
[1735055861534,2.5258,198.15,198.11,1.6421]
[1735055863530,2.526,198.13,198.07,2.5266]
[1735055863727,4.14,198.17,198.05,1.5727]
[1735055864229,1.5555,198.16,198.05,1.5727]
[1735055865133,4.14,198.17,198.05,1.5727]
[1735055865937,2.526,198.13,198.06,2.5268]
[1735055866837,2.5261,198.12,198.06,2.5268]
[1735055867029,2.5261,198.12,198.05,1.5727]
[1735055867235,4.14,198.17,198.01,21.17499294]
[1735055867431,2.5263,198.11,198.02,1.5098]
[1735055867939,1.6182,198.16,198.03,2.5271]
[1735055868140,2.5264,198.1,198.03,2.5271]
[1735055869443,2.5265,198.09,198.03,2.5271]
[1735055870442,2.5267,198.07,198.02,1.5098]
[1735055872539,2.5267,198.07,198.02,4.0371]
[1735055873141,2.5266,198.09,198.03,2.5272]
[1735055873541,2.5266,198.09,198.02,1.5816]
[1735055873743,2.5266,198.09,198.04,2.5271]
[1735055874239,4.14,198.1,198.02,1.5816]
[1735055874443,4.14,198.1,197.98,1.5978]
[1735055874744,4.14,198.1,197.93,71.55916878]
[1735055874944,2.5273,198.02,197.97,2.5279]
[1735055875647,2.5272,198.03,197.93,71.55916878]
[1735055875847,4.14,198.1,197.93,71.55916878]
[1735055876049,2.5271,198.05,197.99,2.5276]
[1735055876641,2.5271,198.05,198.0,1.5341]
[1735055876850,2.5271,198.05,197.99,2.5276]
[1735055877141,2.5271,198.05,198.0,2.5276]
[1735055879045,2.5268,198.07,198.02,2.5273]
[1735055879948,2.5268,198.07,197.95,19.58579294]
[1735055880147,2.5268,198.07,198.02,2.5273]
[1735055880348,4.7,198.1,197.95,19.58579294]
[1735055880648,2.5271,198.04,198.0,2.5276]
[1735055881446,4.7,198.1,197.97,2.5279]
[1735055882145,4.7,198.1,197.98,2.5278]
[1735055882444,12.2542375,198.09,197.98,2.5278]
[1735055882644,2.527,198.05,198.0,2.5276]
[1735055883044,12.2542375,198.09,197.98,12.2542375]
[1735055883744,2.5269,198.06,198.01,2.5275]
[1735055884543,2.5267,198.08,198.02,2.5272]
[1735055885453,2.5267,198.07,198.02,2.5272]
[1735055885749,2.5267,198.07,198.03,2.5272]
[1735055887352,2.5266,198.09,197.98,12.2542375]
[1735055887551,2.5266,198.09,198.01,12.2542375]
[1735055887752,2.5266,198.09,198.02,1.5528]
[1735055887953,2.5266,198.09,198.04,2.527]
[1735055888152,13.7472375,198.15,198.02,1.5528]
[1735055888349,2.5263,198.11,198.02,1.5528]
[1735055888551,2.5263,198.11,198.06,2.5268]
[1735055891654,2.5264,198.1,198.06,2.5268]
[1735055892060,2.5264,198.1,198.05,2.5269]
[1735055893561,2.5268,198.07,198.02,5.6261]
[1735055894157,2.5269,198.06,198.02,5.6261]
[1735055894667,2.5273,198.03,197.98,14.7820375]
[1735055895457,4.46,198.06,197.98,12.2542375]
[1735055895657,2.5275,198.01,197.97,2.528]
[1735055895863,2.5275,198.01,197.96,1.4896]
[1735055896458,2.5278,197.99,197.96,1.4896]
[1735055896664,16.7142375,198.06,197.96,1.4896]
[1735055896865,4.46,198.06,197.96,1.4896]
[1735055897767,2.5272,198.03,197.96,1.4896]
[1735055897966,4.46,198.06,197.96,1.4896]
[1735055898467,2.5276,198.0,197.96,1.4896]
[1735055899059,2.5276,198.0,197.95,2.5282]
[1735055899259,2.5278,197.99,197.93,2.5284]
[1735055899968,2.5278,197.99,197.94,2.5283]
[1735055900766,4.46,198.06,197.95,2.5282]
[1735055900767,2.5276,198.01,197.95,2.5282]
[1735055900965,4.46,198.06,197.92,12.2542375]
[1735055901368,2.5274,198.02,197.95,2.5281]
[1735055901561,4.46,198.06,197.92,12.2542375]
[1735055901764,4.46,198.06,197.88,3.1634]
[1735055901970,12.2542375,198.05,197.94,2.5282]
[1735055903570,2.5278,197.99,197.94,2.5282]
[1735055907174,4.46,197.98,197.89,12.2542375]
[1735055907470,4.46,197.98,197.88,3.1634]
[1735055907471,4.46,197.97,197.88,1.6117]
[1735055907670,2.5284,197.94,197.88,4.1407]
[1735055908072,4.46,197.97,197.88,1.6117]
[1735055908370,2.5282,197.96,197.89,12.2542375]
[1735055908765,4.46,197.97,197.92,2.5285]
[1735055908766,6.988,197.97,197.92,2.5285]
[1735055914973,2.5282,197.95,197.88,1.6117]
[1735055915277,2.5282,197.95,197.9,7.8481582]
[1735055915677,2.5285,197.93,197.88,4.1407]
[1735055916175,2.5285,197.93,197.89,7.8481582]
[1735055916777,7.8481582,197.95,197.86,2.5294]
[1735055916979,7.8481582,197.93,197.86,10.3775582]
[1735055917376,7.8481582,197.91,197.76,80.53736384]
[1735055917671,4.22,197.9,197.85,7.8481582]
[1735055917879,4.22,197.91,197.85,7.8481582]
[1735055918279,2.5291,197.89,197.85,7.8481582]
[1735055919883,1.5421,197.97,197.87,7.8481582]
[1735055920176,4.22,197.98,197.93,7.8481582]
[1735055920377,1.6239,198.05,197.93,7.8481582]
[1735055920378,7.8481582,198.01,197.93,7.8481582]
[1735055920578,12.0681582,198.01,197.93,7.8481582]
[1735055921090,7.8481582,198.0,197.86,3.1959]
[1735055921282,7.8481582,198.0,197.92,7.8481582]
[1735055921674,12.0681582,198.0,197.92,7.8481582]
[1735055921876,2.5279,197.98,197.94,7.8481582]
[1735055922278,4.22,198.0,197.9,12.26082175]
[1735055922477,2.5278,197.99,197.93,2.5285]
[1735055922677,4.22,198.0,197.93,2.5285]
[1735055923476,2.5279,197.98,197.93,2.5285]
[1735055924083,2.5279,197.98,197.91,12.26082175]
[1735055924084,4.22,198.0,197.91,12.26082175]
[1735055924377,2.5281,197.96,197.91,12.26082175]
[1735055925181,2.5281,197.96,197.91,14.78952175]
[1735055925377,2.5284,197.95,197.91,12.26082175]
[1735055925574,4.22,198.0,197.91,12.26082175]
[1735055925770,4.22,198.0,197.9,2.5289]
[1735055925974,2.5283,197.95,197.9,2.5289]
[1735055926378,2.5283,197.95,197.91,2.5287]
[1735055926976,2.5284,197.94,197.91,2.5287]
[1735055927173,2.5284,197.94,197.88,12.26082175]
[1735055927481,2.5284,197.94,197.9,2.5289]
[1735055927681,4.22,198.0,197.86,3.1959]
[1735055927882,4.22,198.0,197.89,2.5289]
[1735055928284,2.5285,197.94,197.87,12.26082175]
[1735055928583,2.5285,197.94,197.91,2.5287]
[1735055930185,4.22,198.0,197.89,2.5289]
[1735055930385,4.22,198.0,197.87,12.26082175]
[1735055930776,2.5286,197.93,197.88,2.529]
[1735055931087,4.22,198.0,197.88,2.529]
[1735055931685,4.22,198.0,197.87,12.26082175]
[1735055931883,2.5285,197.94,197.89,2.529]
[1735055932578,2.5285,197.94,197.87,12.26082175]
[1735055933179,4.22,197.93,197.82,12.26082175]
[1735055933384,4.22,197.92,197.82,12.26082175]
[1735055934684,4.22,197.94,197.85,12.26082175]
[1735055935085,2.5286,197.93,197.85,12.26082175]
[1735055935684,2.5286,197.93,197.88,2.529]
[1735055936390,2.5288,197.91,197.86,2.5293]
[1735055937797,4.22,197.94,197.85,12.26082175]
[1735055937995,2.529,197.89,197.84,2.5295]
[1735055938396,4.22,197.94,197.82,12.26082175]
[1735055938695,4.22,197.94,197.86,12.26082175]
[1735055938995,3.1885,197.97,197.86,12.26082175]
[1735055939196,4.0,197.96,197.86,12.26082175]
[1735055939693,2.5284,197.94,197.89,2.5289]
[1735055939891,2.5284,197.94,197.86,12.26082175]
[1735055940092,2.5284,197.94,197.87,3.1469]
[1735055940287,2.5284,197.94,197.81,55.38592095]
[1735055940590,2.5284,197.94,197.87,12.26082175]
[1735055941498,2.5284,197.94,197.9,2.5289]
[1735055941991,13.77492175,198.04,197.9,12.26082175]
[1735055942200,3.24,198.06,197.96,12.26082175]
[1735055942700,2.5276,198.01,197.97,2.5279]
[1735055942899,4.0,198.04,197.93,12.26082175]
[1735055943297,2.5277,198.0,197.95,2.5281]
[1735055943700,4.0,198.04,197.93,12.26082175]
[1735055943899,4.0,198.04,197.93,14.78922175]
[1735055944203,4.0,198.04,197.93,12.26082175]
[1735055944499,2.5273,198.03,197.97,2.5279]
[1735055946003,3.24,198.06,197.93,12.26082175]
[1735055946200,2.5271,198.04,197.93,12.26082175]
[1735055946397,7.24,198.06,197.93,12.26082175]
[1735055947407,2.5273,198.03,197.97,2.5279]
[1735055948200,109.50588366,198.15,198.0,7.84295531]
[1735055948201,56.94588366,198.15,198.0,7.84295531]
[1735055948409,2.5257,198.15,198.1,7.84295531]
[1735055948701,7.84295531,198.17,198.08,7.84295531]
[1735055949204,7.84295531,198.15,198.06,2.5268]
[1735055949405,7.84295531,198.11,198.01,4.7727]
[1735055949606,4.0,198.1,198.03,7.84295531]
[1735055950003,10.36975531,198.07,198.0,2.5275]
[1735055950304,2.5268,198.07,198.0,2.5275]
[1735055952107,2.5268,198.07,197.96,2.5281]
[1735055952108,2.5272,198.04,197.96,2.5281]
[1735055952305,12.25339143,198.07,197.96,2.5281]
[1735055952701,12.25339143,198.07,197.97,2.5279]
[1735055952904,12.25339143,198.07,197.94,1.6511]
[1735055953306,12.25339143,198.04,197.94,1.6511]
[1735055953503,4.0,198.03,197.94,1.6511]
[1735055954607,2.5276,198.0,197.94,1.6511]
[1735055956313,6.5275,198.02,197.94,1.6511]
[1735055957410,2.5275,198.01,197.94,1.6511]
[1735055958412,2.5276,198.0,197.94,1.6511]
[1735055958613,4.0,198.02,197.94,1.6511]
[1735055959014,2.5279,197.98,197.94,1.6511]
[1735055959608,12.25339143,197.97,197.83,53.78452095]
[1735055959815,13.76109143,197.97,197.83,53.78452095]
[1735055960212,2.5293,197.87,197.83,53.78452095]
[1735055960812,2.5293,197.87,197.82,1.6184]
[1735055963807,4.0,197.88,197.82,1.6184]
[1735055964009,2.5295,197.85,197.82,1.6184]
[1735055964717,2.5295,197.85,197.8,2.5302]
[1735055965013,2.5295,197.85,197.8,14.78359143]
[1735055965218,2.5298,197.83,197.8,12.25339143]
[1735055965418,4.0,197.88,197.8,12.25339143]
[1735055965617,4.0,197.88,197.77,12.25339143]
[1735055966420,2.53,197.81,197.77,12.25339143]
[1735055966717,3.84,197.81,197.77,12.25339143]
[1735055967518,3.84,197.81,197.74,12.25339143]
[1735055967915,2.5306,197.77,197.74,12.25339143]
[1735055968221,3.84,197.81,197.74,12.25339143]
[1735055969213,2.5307,197.76,197.62,53.78452095]
[1735055969410,2.5307,197.76,197.71,12.25339143]
[1735055969820,2.5308,197.75,197.71,12.25339143]
[1735055971315,1.5467,197.84,197.74,12.25339143]
[1735055971520,1.6051,197.87,197.77,12.25339143]
[1735055971521,3.84,197.85,197.77,12.25339143]
[1735055971914,3.84,197.85,197.74,12.25339143]
[1735055972720,2.5302,197.81,197.76,2.5306]
[1735055972926,3.84,197.85,197.76,2.5306]
[1735055973319,2.5299,197.82,197.74,12.25339143]
[1735055973521,1.646,197.84,197.74,12.25339143]
[1735055973919,2.5299,197.83,197.71,4.7259]
[1735055974122,1.646,197.92,197.79,12.25339143]
[1735055974422,3.84,197.91,197.79,12.25339143]
[1735055975325,2.5297,197.84,197.79,14.78359143]
[1735055975527,6.3697,197.84,197.79,14.78359143]
[1735055976430,2.5297,197.84,197.79,14.78359143]
[1735055977321,12.25339143,197.84,197.63,53.78452095]
[1735055977520,12.25339143,197.84,197.7,12.25339143]
[1735055978426,2.5305,197.78,197.74,2.5308]
[1735055978727,6.3705,197.78,197.7,12.25339143]
[1735055979325,6.3705,197.78,197.73,2.531]
[1735055980527,3.84,197.78,197.73,12.25339143]
[1735055980726,3.84,197.78,197.74,4.7721]
[1735055981123,12.25339143,197.87,197.77,2.5305]
[1735055981323,3.84,197.86,197.74,4.7721]
[1735055981828,2.53,197.82,197.77,2.5305]
[1735055982829,12.25339143,197.91,197.76,12.25339143]
[1735055983029,3.84,197.9,197.79,12.25339143]
[1735055984029,3.84,197.9,197.76,12.25339143]
[1735055985735,2.5294,197.86,197.79,12.25339143]
[1735055985927,12.25339143,197.94,197.79,12.25339143]
[1735055986121,3.84,197.93,197.77,3.84]
[1735055986322,3.84,197.92,197.82,12.25339143]
[1735055986730,12.25339143,197.94,197.82,12.25339143]
[1735055986930,3.84,197.93,197.79,12.25339143]
[1735055987432,12.25339143,197.91,197.79,12.25339143]
[1735055987932,12.25339143,197.91,197.8,2.53]
[1735055988729,2.5298,197.84,197.79,12.25339143]
[1735055989328,3.84,197.86,197.79,12.25339143]
[1735055989530,2.5295,197.85,197.79,12.25339143]
[1735055990436,2.5295,197.85,197.8,2.5301]
[1735055991136,3.84,197.86,197.8,2.5301]
[1735055991435,2.5296,197.84,197.8,2.5301]
[1735055991832,2.5299,197.82,197.78,2.5304]
[1735055992032,3.84,197.86,197.78,2.5304]
[1735055992429,2.5302,197.8,197.76,2.5306]
[1735055992736,3.84,197.86,197.74,4.7721]
[1735055993237,2.5305,197.78,197.74,7.303]
[1735055993634,3.84,197.79,197.75,2.5307]
[1735055994835,3.84,197.79,197.76,12.25339143]
[1735055995037,6.3298,197.84,197.76,12.25339143]
[1735055995334,4.7425,197.9,197.76,12.25339143]
[1735055995335,3.8,197.85,197.76,12.25339143]
[1735055995535,2.5302,197.8,197.76,14.78399143]
[1735055995837,2.5302,197.8,197.76,2.5306]
[1735055996434,3.8,197.79,197.74,7.3029]
[1735055997435,2.5305,197.78,197.74,7.3029]
[1735055997934,3.8,197.79,197.77,2.5305]
[1735055998939,3.8,197.79,197.78,2.5304]
[1735055999335,2.53,197.82,197.76,12.25339143]
[1735055999536,6.3297,197.84,197.8,2.5301]
[1735056000737,2.5297,197.84,197.8,2.5301]
[1735056005039,3.146,197.9,197.74,4.7721]
[1735056005347,3.8,197.89,197.74,4.7721]
[1735056005543,3.8,197.88,197.74,4.7721]
[1735056005749,3.1741,197.96,197.74,4.7721]
[1735056005949,3.8,197.95,197.74,4.7721]
[1735056006138,3.1741,197.96,197.74,4.7721]
[1735056006449,3.8,197.95,197.74,4.7721]
[1735056006937,3.1741,197.96,197.74,4.7721]
[1735056007343,3.8,197.95,197.74,4.7721]
[1735056008147,3.1741,197.96,197.74,4.7721]
[1735056008348,2.529,197.9,197.8,2.5301]
[1735056008553,3.8,197.89,197.74,4.7721]
[1735056008753,3.8,197.88,197.74,4.7721]
[1735056008949,2.5296,197.85,197.79,2.5302]
[1735056009148,3.8,197.88,197.78,12.27355487]
[1735056010052,2.5296,197.85,197.81,2.53]
[1735056010352,3.8,197.88,197.78,12.27355487]
[1735056010754,2.5299,197.82,197.75,12.27355487]
[1735056011348,3.1415,197.87,197.75,12.27355487]
[1735056011557,15.41505487,197.87,197.75,2.5307]
[1735056012058,3.1415,197.87,197.75,12.27355487]
[1735056012258,3.1415,197.87,197.74,4.7721]
[1735056012457,3.1415,197.87,197.74,17.04565487]
[1735056012458,2.5299,197.83,197.74,17.04565487]
[1735056012653,3.8,197.86,197.74,17.04565487]
[1735056013450,2.5297,197.84,197.79,2.5302]
[1735056013949,6.3297,197.84,197.8,2.5302]
[1735056014453,3.8,197.84,197.77,12.27355487]
[1735056014654,3.8,197.84,197.81,2.53]
[1735056015455,3.1415,197.87,197.77,12.27355487]
[1735056015655,3.8,197.86,197.8,12.27355487]
[1735056015858,3.8,197.88,197.74,4.7721]
[1735056016058,2.5296,197.85,197.76,12.27355487]
[1735056016250,3.8,197.88,197.76,12.27355487]
[1735056017559,2.5295,197.86,197.8,2.5301]
[1735056017761,2.5295,197.86,197.79,12.27355487]
[1735056017954,3.8,197.88,197.79,12.27355487]
[1735056018158,2.5295,197.85,197.8,2.53]
[1735056018956,2.5295,197.85,197.79,12.27355487]
[1735056019163,2.5295,197.85,197.81,2.53]
[1735056020863,2.5292,197.88,197.84,2.5296]
[1735056021161,3.0914,197.95,197.83,12.27355487]
[1735056021162,3.8,197.89,197.83,12.27355487]
[1735056021365,3.8,197.89,197.8,12.27355487]
[1735056021661,3.8,197.88,197.8,12.27355487]
[1735056021861,3.8,197.89,197.8,12.27355487]
[1735056022064,3.8,197.89,197.85,2.5295]
[1735056022460,3.8,197.89,197.87,2.5292]
[1735056022763,3.8,197.89,197.76,54.4826688]
[1735056023071,16.07355487,197.89,197.77,54.4826688]
[1735056023961,12.27355487,197.89,197.77,54.4826688]
[1735056024157,3.8,197.88,197.75,15.48265487]
[1735056024361,3.8,197.87,197.78,12.27355487]
[1735056024559,3.78,197.86,197.78,12.27355487]
[1735056025464,3.78,197.86,197.75,3.2091]
[1735056025967,3.78,197.86,197.75,15.48265487]
[1735056026168,2.5299,197.83,197.77,2.5304]
[1735056026361,3.78,197.86,197.77,2.5304]
[1735056026558,3.1664,197.85,197.77,2.5304]
[1735056026764,2.5302,197.8,197.76,2.5306]
[1735056026970,3.1664,197.85,197.75,12.27355487]
[1735056027268,3.1664,197.85,197.72,12.27355487]
[1735056027269,4.6999,197.85,197.72,12.27355487]
[1735056027568,12.27355487,197.83,197.71,54.4826688]
[1735056027758,12.27355487,197.8,197.7,54.4826688]
[1735056027961,3.78,197.79,197.7,54.4826688]
[1735056028465,2.5311,197.73,197.7,54.4826688]
[1735056028770,3.78,197.72,197.68,2.5316]
[1735056029264,6.3112,197.72,197.66,14.80545487]
[1735056029466,3.78,197.72,197.69,12.27355487]
[1735056030261,3.78,197.77,197.69,12.27355487]
[1735056030461,2.5308,197.76,197.7,2.5314]
[1735056030656,2.5308,197.76,197.69,12.27355487]
[1735056030858,3.78,197.79,197.72,12.27355487]
[1735056031366,3.78,197.79,197.74,2.5309]
[1735056032567,6.3104,197.79,197.74,2.5309]
[1735056032870,3.78,197.79,197.72,12.27355487]
[1735056033070,3.78,197.79,197.75,2.5308]
[1735056034772,2.5305,197.78,197.73,2.531]
[1735056035267,2.531,197.74,197.69,14.80505487]
[1735056035470,2.531,197.74,197.69,2.5315]
[1735056035971,3.78,197.74,197.7,2.5313]
[1735056036374,2.5309,197.75,197.7,2.5313]
[1735056036569,2.5301,197.81,197.74,2.5309]
[1735056036765,3.78,197.8,197.74,2.5309]
[1735056037673,2.5303,197.79,197.75,2.5308]
[1735056037972,3.78,197.8,197.75,2.5308]
[1735056040569,6.3102,197.8,197.75,2.5308]
[1735056040768,1.83914082,197.89,197.73,12.27355487]
[1735056041073,2.5296,197.84,197.76,12.27355487]
[1735056041973,3.78,197.86,197.72,1.5278]
[1735056042168,12.27355487,197.84,197.72,1.5278]
[1735056042374,12.27355487,197.81,197.69,12.27355487]
[1735056042575,2.531,197.74,197.69,57.0140688]
[1735056042773,2.531,197.74,197.69,54.4826688]
[1735056043475,3.78,197.73,197.66,12.27355487]
[1735056043670,3.78,197.72,197.66,12.27355487]
[1735056043870,3.78,197.72,197.64,4.6699]
[1735056044371,6.3113,197.72,197.66,2.5319]
[1735056044874,3.78,197.72,197.66,2.5319]
[1735056045076,2.5314,197.71,197.66,2.5319]
[1735056045372,3.78,197.72,197.64,4.6699]
[1735056045676,3.78,197.72,197.64,3.1697]
[1735056045977,2.5318,197.68,197.61,19.66920959]
[1735056046173,3.78,197.72,197.61,2.5326]
[1735056046380,2.5326,197.61,197.56,54.4826688]
[1735056046676,3.78,197.61,197.56,54.4826688]
[1735056046877,6.3126,197.61,197.56,54.4826688]
[1735056047379,2.5326,197.61,197.56,54.4826688]
[1735056047593,3.78,197.6,197.56,54.4826688]
[1735056047875,2.5326,197.61,197.55,2.5333]
[1735056048078,3.78,197.6,197.55,2.5333]
[1735056048276,2.5336,197.54,197.47,54.4826688]
[1735056048469,19.66920959,197.67,197.49,19.66920959]
[1735056048668,6.9389,197.66,197.53,19.66920959]
[1735056049479,2.5325,197.62,197.56,2.5332]
[1735056049683,3.78,197.66,197.57,19.66920959]
[1735056050085,2.5323,197.64,197.57,19.66920959]
[1735056050583,3.78,197.66,197.57,19.66920959]
[1735056051077,2.5324,197.63,197.57,19.66920959]
[1735056051379,3.78,197.66,197.55,3.1902]
[1735056051581,2.5326,197.61,197.54,1.6354]
[1735056051777,3.8,197.6,197.54,1.6354]
[1735056051976,3.8,197.59,197.49,19.66920959]
[1735056052178,3.8,197.58,197.49,19.66920959]
[1735056052376,2.5334,197.55,197.49,19.66920959]
[1735056052681,3.8,197.58,197.49,19.66920959]
[1735056054585,2.5331,197.57,197.51,2.5338]
[1735056055487,3.1648,197.65,197.53,2.5336]
[1735056055686,3.78,197.64,197.53,2.5336]
[1735056055986,3.78,197.63,197.49,19.66920959]
[1735056056286,3.78,197.63,197.51,2.5337]
[1735056056685,3.78,197.63,197.49,19.66920959]
[1735056057386,2.5332,197.57,197.51,2.5339]
[1735056057687,3.78,197.61,197.49,19.66920959]
[1735056058388,3.1648,197.65,197.49,19.66920959]
[1735056058389,3.8,197.6,197.49,19.66920959]
[1735056058587,2.5329,197.59,197.53,2.5335]
[1735056059082,3.8,197.58,197.53,2.5335]
[1735056059279,3.8,197.58,197.54,2.5334]
[1735056059484,3.8,197.58,197.49,19.66920959]
[1735056059679,3.1648,197.65,197.49,19.66920959]
[1735056059977,3.8,197.66,197.53,19.66920959]
[1735056060184,3.8,197.65,197.54,1.5851]
[1735056060385,3.8,197.64,197.54,1.5851]
[1735056060585,2.5325,197.62,197.56,2.5331]
[1735056060785,3.1912,197.7,197.56,19.66920959]
[1735056060981,3.8,197.69,197.57,19.66920959]
[1735056061582,2.5321,197.65,197.59,2.5327]
[1735056061787,3.78,197.65,197.57,19.66920959]
[1735056062084,3.1912,197.7,197.57,19.66920959]
[1735056062384,3.78,197.69,197.57,19.66920959]
[1735056062583,3.1045,197.77,197.51,4.8448]
[1735056062889,3.78,197.76,197.59,19.66920959]
[1735056063092,23.44920959,197.76,197.6,4.8041]
[1735056063385,23.44920959,197.76,197.65,2.532]
[1735056063577,19.66920959,197.76,197.65,2.532]
[1735056063777,3.78,197.75,197.65,2.532]
[1735056064188,2.5314,197.71,197.66,2.5319]
[1735056064386,19.66920959,197.76,197.6,4.8041]
[1735056064586,1.5427,197.77,197.63,19.66920959]
[1735056064983,3.78,197.76,197.63,19.66920959]
[1735056065489,6.3108,197.76,197.7,2.5314]
[1735056066488,6.3108,197.76,197.63,19.66920959]
[1735056066489,2.5312,197.73,197.67,2.5318]
[1735056067091,2.5309,197.75,197.68,2.5316]
[1735056067487,3.78,197.76,197.68,2.5316]
[1735056068691,2.531,197.74,197.68,2.5316]
[1735056068888,3.78,197.76,197.63,19.66920959]
[1735056069089,2.5313,197.72,197.66,2.5319]
[1735056071192,2.531,197.74,197.67,12.29192754]
[1735056071592,6.311,197.74,197.68,1.5018]
[1735056071993,6.311,197.74,197.68,4.0334]
[1735056073990,2.531,197.74,197.68,4.0334]
[1735056074191,3.78,197.73,197.69,2.5315]
[1735056075098,2.531,197.74,197.69,2.5315]
[1735056075298,1.5972,197.8,197.68,3.0961]
[1735056075486,2.5307,197.76,197.71,2.5313]
[1735056075693,1.5972,197.8,197.7,12.29192754]
[1735056075993,2.5305,197.77,197.72,2.5312]
[1735056076797,3.78,197.79,197.72,2.5312]
[1735056077101,2.5307,197.76,197.72,2.5312]
[1735056078198,3.78,197.79,197.7,12.29192754]
[1735056078399,3.78,197.79,197.68,3.0961]
[1735056078998,2.5311,197.73,197.68,1.5018]
[1735056079297,3.78,197.72,197.66,12.29192754]
[1735056079706,3.78,197.72,197.68,2.5317]
[1735056079899,3.78,197.72,197.63,13.91112754]
[1735056080609,2.5315,197.7,197.63,13.91112754]
[1735056081008,2.5315,197.7,197.64,2.5321]
[1735056081509,2.5316,197.69,197.64,2.5321]
[1735056082307,12.29192754,197.76,197.63,1.6192]
[1735056082611,3.78,197.75,197.67,2.5318]
[1735056082806,3.78,197.75,197.65,12.29192754]
[1735056083008,2.5311,197.73,197.68,2.5317]
[1735056083513,3.78,197.72,197.7,2.5314]
[1735056083709,1.5859,197.77,197.7,2.5314]
[1735056083710,3.78,197.73,197.7,2.5314]
[1735056084203,3.78,197.74,197.7,2.5314]
[1735056085507,3.78,197.74,197.68,12.29192754]
[1735056086302,3.78,197.74,197.65,12.29192754]
[1735056086504,3.78,197.74,197.57,54.08374306]
[1735056086707,12.29192754,197.73,197.57,54.08374306]
[1735056087014,12.29192754,197.73,197.59,12.29192754]
[1735056087207,2.5325,197.62,197.59,12.29192754]
[1735056087408,3.78,197.61,197.56,1.6306]
[1735056087604,3.78,197.6,197.53,12.29192754]
[1735056087808,2.533,197.58,197.53,12.29192754]
[1735056088306,2.533,197.58,197.53,14.82552754]
[1735056088615,2.533,197.58,197.53,12.29192754]
[1735056088915,3.78,197.59,197.54,2.5334]
[1735056089113,3.78,197.59,197.53,12.29192754]
[1735056089317,3.78,197.59,197.56,12.29192754]
[1735056090122,3.78,197.59,197.51,1.6306]
[1735056090123,3.78,197.59,197.54,19.68392917]
[1735056090309,3.78,197.61,197.54,19.68392917]
[1735056090915,2.5319,197.67,197.6,2.5327]
[1735056091110,3.78,197.66,197.58,19.68392917]
[1735056091313,3.2063,197.74,197.59,4.7367]
[1735056091512,3.78,197.73,197.59,4.7367]
[1735056092419,2.5316,197.69,197.64,2.5322]
[1735056095409,3.2063,197.74,197.62,19.68392917]
[1735056095615,1.5653,197.83,197.66,19.68392917]